bitfinex/quotes_ETHUSD_20250216
["timestamp","ask_amount","ask_price","bid_price","bid_amount"]
[1739739320474,3.74141,2672.8,2672.3,10.03840305]
[1739739320831,3.74141,2672.8,2672.3,13.78041305]
[1739739321265,3.74158,2672.7,2672.3,3.23881305]
[1739739321468,0.374158,2672.6,2672.3,3.23881305]
[1739739322360,3.74195,2672.4,2672.3,3.23881305]
[1739739322606,3.74199,2672.4,2672.0,3.23881305]
[1739739323004,3.78876756,2672.4,2672.0,3.23881305]
[1739739323210,3.74199,2672.4,2672.0,3.23881305]
[1739739323523,4.568908,2672.3,2672.0,3.23881305]
[1739739323838,4.568908,2672.3,2671.7,3.80043]
[1739739323839,3.74231,2672.2,2671.7,7.03924305]
[1739739324062,4.568908,2672.3,2671.7,10.78208305]
[1739739324339,4.568908,2672.3,2671.7,10.72448305]
[1739739324538,3.74232,2672.2,2671.7,6.98164305]
[1739739324722,3.74252,2672.0,2671.7,3.23881305]
[1739739325338,0.7796,2672.1,2671.7,3.23881305]
[1739739325699,4.52205,2672.1,2671.7,3.23881305]
[1739739325937,3.74252,2672.0,2671.7,3.23881305]
[1739739326243,3.74265,2671.9,2671.7,3.23881305]
[1739739326441,3.74265,2671.9,2671.4,3.23881305]
[1739739326927,3.74265,2671.9,2671.4,6.98216305]
[1739739327593,3.74282,2671.8,2671.4,3.23881305]
[1739739327787,4.57862709,2671.8,2671.4,3.23881305]
[1739739327935,4.57862709,2671.8,2671.4,6.98210305]
[1739739327936,0.83580709,2671.8,2671.4,6.98210305]
[1739739329454,3.74269,2671.9,2671.4,6.98210305]
[1739739330130,0.87260086,2672.0,2671.5,3.74314]
[1739739330461,4.61524086,2672.0,2671.5,3.74314]
[1739739330760,3.74267,2671.9,2671.5,3.74314]
[1739739331462,7.48542,2671.9,2671.4,3.23881305]
[1739739331767,3.74297,2671.7,2671.4,3.23881305]
[1739739332063,3.7429,2671.8,2671.4,3.23881305]
[1739739333165,3.7429,2671.8,2671.4,6.98215305]
[1739739333759,3.7429,2671.8,2671.4,3.23881305]
[1739739333983,0.91938862,2672.0,2671.4,3.23881305]
[1739739334134,3.74288,2671.8,2671.4,3.23881305]
[1739739334550,0.7796,2671.7,2671.4,3.23881305]
[1739739336451,4.52256,2671.7,2671.4,3.23881305]
[1739739336782,3.74307,2671.6,2671.1,6.23881305]
[1739739336985,3.74321,2671.5,2671.1,6.23881305]
[1739739337192,3.74307,2671.6,2671.1,3.23881305]
[1739739337330,9.0771171,2671.6,2671.0,3.74377]
[1739739337535,9.0771171,2671.6,2671.1,3.74374]
[1739739337736,9.0771171,2671.6,2671.0,3.74377]
[1739739337970,12.8203171,2671.6,2671.0,3.74377]
[1739739338437,3.74322,2671.5,2671.0,3.74377]
[1739739340368,9.0771171,2671.6,2671.1,3.7437]
[1739739340576,14.18027581,2671.6,2671.1,3.7437]
[1739739340937,10.43707581,2671.6,2671.1,3.7437]
[1739739341134,3.74323,2671.5,2671.1,3.7437]
[1739739343590,3.74323,2671.5,2670.9,6.74396]
[1739739343889,0.8127,2671.3,2670.9,6.74396]
[1739739344090,0.8127,2671.3,2670.9,6.74395]
[1739739344292,0.8127,2671.3,2671.0,3.7439]
[1739739345697,0.8127,2671.3,2670.9,3.0]
[1739739345868,3.74371,2671.2,2670.8,3.33437185]
[1739739346063,7.48745,2671.2,2670.8,3.33437185]
[1739739346413,3.74371,2671.2,2670.8,3.33437185]
[1739739346689,3.74371,2671.2,2670.8,7.07856185]
[1739739347088,3.74371,2671.2,2670.8,3.33437185]
[1739739347305,0.5012018,2671.1,2670.8,3.33437185]
[1739739347509,0.5012018,2671.1,2670.8,0.0955588]
[1739739347794,3.74391,2671.0,2670.8,0.0955588]
[1739739348295,4.55675,2670.9,2670.8,0.0955588]
[1739739348589,0.8127,2670.9,2670.8,0.0955588]
[1739739348953,4.55641,2671.2,2670.8,0.0955588]
[1739739349665,0.8127,2671.2,2670.8,0.0955588]
[1739739350080,4.55634,2671.2,2670.8,0.0955588]
[1739739350291,5.011974,2671.2,2670.8,0.0955588]
[1739739351351,9.21400581,2671.6,2671.1,3.23881305]
[1739739351352,0.8127,2671.4,2671.1,3.23881305]
[1739739351550,6.69400581,2671.6,2671.1,3.23881305]
[1739739351551,5.3340471,2671.6,2671.1,3.23881305]
[1739739351755,5.3340471,2671.6,2671.5,6.98202305]
[1739739351954,5.3340471,2672.0,2671.5,6.98192305]
[1739739352193,5.3340471,2672.0,2671.7,3.74281]
[1739739352375,5.3340471,2672.0,2671.9,3.74265]
[1739739352576,9.0756871,2672.7,2672.1,3.74237]
[1739739352777,6.1467471,2672.7,2672.2,3.74212]
[1739739353089,6.1467471,2672.7,2672.1,6.98118305]
[1739739353090,6.1467471,2672.7,2672.1,6.98106305]
[1739739353389,6.1467471,2672.7,2672.2,3.7422]
[1739739353562,6.32286181,2672.7,2672.3,3.74205]
[1739739353895,6.32286181,2672.7,2672.3,3.79965]
[1739739354253,5.3340471,2672.7,2672.3,3.79965]
[1739739354597,0.8127,2673.0,2672.6,3.74159]
[1739739354780,0.8127,2673.0,2672.4,3.23881305]
[1739739355101,0.04676905,2672.9,2672.4,6.98068305]
[1739739355246,0.8127,2673.0,2672.5,3.7418]
[1739739355791,0.8127,2673.0,2672.4,3.23881305]
[1739739356091,0.04676903,2672.9,2672.4,6.98073305]
[1739739356290,4.55384,2673.0,2672.4,8.05876736]
[1739739356674,3.74139,2672.8,2672.2,3.74219]
[1739739358314,7.48287,2672.8,2672.2,3.74219]
[1739739358603,3.74139,2672.8,2672.2,3.74219]
[1739739359691,3.74139,2672.8,2672.2,7.48434]
[1739739359894,3.74129,2672.9,2672.3,3.74201]
[1739739360191,0.8127,2673.0,2672.6,3.74166]
[1739739361274,0.8127,2673.0,2672.7,3.74143]
[1739739362274,0.8127,2673.0,2672.6,3.74166]
[1739739363283,0.8127,2673.0,2672.6,7.48325]
[1739739363611,0.8127,2673.0,2672.7,3.74152]
[1739739363808,6.1089471,2673.3,2672.8,3.74127]
[1739739364219,6.1089471,2673.3,2672.6,1.14704791]
[1739739364220,3.74111,2673.1,2672.6,1.14704791]
[1739739364518,3.74149,2672.8,2672.2,3.74214]
[1739739364807,3.78826299,2672.8,2672.3,3.74208]
[1739739365009,3.74149,2672.8,2672.3,3.74208]
[1739739365181,4.51627,2672.9,2672.4,3.74193]
[1739739365615,4.51627,2672.9,2672.4,3.74188]
[1739739365919,0.7749,2672.9,2672.5,3.7418]
[1739739366100,0.7749,2673.2,2672.9,3.74124]
[1739739366410,6.1089471,2673.2,2672.7,3.23881305]
[1739739366591,0.04676633,2673.1,2672.7,3.74143]
[1739739366862,6.1089471,2673.2,2672.8,3.74139]
[1739739367016,7.09392181,2673.2,2672.8,3.74139]
[1739739367793,7.09392181,2673.2,2672.7,3.74143]
[1739739368336,7.09392181,2673.2,2672.8,3.7413]
[1739739368521,0.04676633,2673.1,2672.6,3.74166]
[1739739369122,3.78774633,2673.1,2672.6,3.74166]
[1739739369330,5.20337681,2673.0,2672.5,3.74171]
[1739739369513,0.7749,2672.9,2672.5,3.74171]
[1739739370719,4.51624,2672.9,2672.4,3.74191]
[1739739371018,3.78824298,2672.8,2672.2,3.74214]
[1739739371179,9.12229008,2672.8,2672.2,3.74214]
[1739739371378,9.0755171,2672.8,2672.3,3.74209]
[1739739371579,0.04677461,2672.7,2672.3,3.74209]
[1739739371815,0.04677461,2672.7,2672.2,3.74213]
[1739739372015,0.04677461,2672.7,2672.2,3.74223]
[1739739372218,0.04677461,2672.7,2672.1,3.23881305]
[1739739372219,6.83944849,2672.8,2672.3,3.74206]
[1739739372420,6.83944849,2672.8,2672.4,3.74186]
[1739739372923,6.83944849,2672.8,2672.5,3.74174]
[1739739373431,5.3340471,2672.8,2672.5,3.74174]
[1739739373829,5.3340471,2672.8,2672.6,3.74163]
[1739739373991,5.3340471,2672.8,2672.7,3.74153]
[1739739374319,5.3340471,2672.8,2672.6,3.74163]
[1739739374508,5.3340471,2672.8,2672.6,3.7416]
[1739739375145,5.3340471,2672.8,2672.7,3.74153]
[1739739376019,5.3340471,2672.8,2672.7,6.98034305]
[1739739376219,5.3340471,2672.8,2672.7,8.05253736]
[1739739378326,5.3340471,2672.8,2672.7,6.98034305]
[1739739379733,5.3340471,2672.8,2672.7,7.03794305]
[1739739380722,5.3340471,2673.3,2672.7,3.29641305]
[1739739380926,5.3340471,2673.3,2673.1,3.74095]
[1739739381134,5.3340471,2673.3,2672.7,3.29641305]
[1739739381135,9.12156948,2673.3,2672.7,7.03782305]
[1739739381349,4.514,2673.2,2672.7,3.74141]
[1739739382213,4.514,2673.2,2672.8,3.74136]
[1739739382396,0.7731,2673.2,2672.8,3.74136]
[1739739383206,0.7731,2673.2,2672.4,3.23881305]
[1739739383500,4.51451,2672.8,2672.3,7.48404]
[1739739383701,4.56128284,2672.8,2672.3,3.74199]
[1739739383889,5.39153612,2672.8,2672.1,13.72332305]
[1739739384231,0.7731,2672.6,2672.1,6.98105305]
[1739739384444,6.1071471,2672.6,2672.1,6.98105305]
[1739739385525,6.1071471,2672.6,2672.1,3.23881305]
[1739739385716,0.61071471,2672.5,2672.0,3.74242]
[1739739385920,9.8489471,2672.6,2672.1,3.7423]
[1739739386331,0.04677856,2672.5,2672.1,3.7423]
[1739739386709,9.8489471,2672.6,2672.1,3.7423]
[1739739387573,0.04677856,2672.5,2672.1,3.7423]
[1739739388355,6.1071471,2672.6,2672.1,3.7423]
[1739739388648,6.1071471,2672.6,2672.2,3.74214]
[1739739389149,3.74181,2672.5,2672.0,3.74243]
[1739739389443,0.04677925,2672.4,2671.8,3.23881305]
[1739739389933,0.04677925,2672.4,2672.1,3.74228]
[1739739390148,6.1071471,2672.6,2672.1,3.74228]
[1739739390149,6.15392635,2672.6,2672.1,3.74228]
[1739739390437,7.55389006,2672.6,2672.1,3.74228]
[1739739390595,7.55389006,2672.6,2672.2,3.74223]
[1739739390800,11.29558006,2672.6,2672.1,3.74235]
[1739739391105,7.55389006,2672.6,2672.1,3.74229]
[1739739392846,7.55389006,2672.6,2672.2,3.74213]
[1739739393146,6.1071471,2672.6,2672.2,3.74213]
[1739739393347,6.1071471,2672.6,2672.3,3.74202]
[1739739393754,5.3340471,2672.6,2672.5,3.74181]
[1739739394164,5.3340471,2672.6,2672.4,3.74194]
[1739739394375,5.3340471,2672.6,2672.5,3.74181]
[1739739397346,3.74064,2673.4,2672.7,3.74142]
[1739739397347,4.50195,2673.3,2672.7,3.74142]
[1739739397518,3.78768457,2673.2,2672.7,3.74152]
[1739739398125,3.78768457,2673.2,2672.8,3.74138]
[1739739398513,3.78768457,2673.2,2672.6,3.74167]
[1739739398514,3.78768457,2673.2,2672.7,3.74151]
[1739739398950,6.0952471,2673.3,2672.9,3.74117]
[1739739399171,5.3340471,2673.3,2672.8,3.74131]
[1739739399472,0.80796452,2673.2,2672.7,3.7414]
[1739739400349,4.54887452,2673.2,2672.7,3.7414]
[1739739401818,3.741,2673.1,2672.6,3.74166]
[1739739402363,4.50203,2673.2,2672.7,3.74149]
[1739739402685,5.85970271,2673.2,2672.7,3.74149]
[1739739402973,2.11887271,2673.2,2672.9,3.74118]
[1739739403265,2.11887271,2673.2,2672.8,3.74139]
[1739739405068,5.906501,2673.2,2672.7,3.74149]
[1739739405271,5.85973271,2673.2,2672.7,3.74149]
[1739739406279,2.11887271,2673.2,2672.8,3.74131]
[1739739406581,0.7612,2673.2,2672.8,3.74129]
[1739739406768,5.3340471,2673.3,2673.0,3.74099]
[1739739408542,5.3340471,2673.3,2673.2,3.74083]
[1739739409162,5.3340471,2673.3,2673.1,3.74096]
[1739739413188,5.3340471,2673.3,2673.0,3.7411]
[1739739413395,5.3340471,2673.3,2673.1,3.74093]
[1739739413762,5.3340471,2673.3,2673.1,3.74097]
[1739739416510,5.3340471,2673.3,2673.2,3.74083]
[1739739417215,5.3340471,2673.3,2673.2,4.489018]
[1739739419773,5.3340471,2673.3,2673.2,4.546618]
[1739739422296,5.38080321,2673.8,2673.2,4.546618]
[1739739422613,0.03541158,2673.7,2673.2,4.546548]
[1739739422775,0.03541158,2673.7,2673.2,3.74076]
[1739739422971,0.82495699,2673.6,2673.2,3.74076]
[1739739423176,0.7782,2673.6,2673.3,3.74061]
[1739739423377,0.03539199,2673.5,2673.3,3.74061]
[1739739423588,6.1122471,2673.6,2673.3,3.74061]
[1739739423794,0.0353822,2673.4,2673.3,3.74061]
[1739739424006,6.1122471,2673.6,2673.3,3.74061]
[1739739424213,0.0353822,2673.4,2673.3,3.74061]
[1739739424415,6.1122471,2673.6,2673.2,3.7408]
[1739739424609,0.0353822,2673.4,2673.3,3.74069]
[1739739424948,6.1122471,2673.6,2673.3,3.74069]
[1739739425129,0.0353822,2673.4,2673.3,3.74069]
[1739739425294,6.1122471,2673.6,2673.3,3.74069]
[1739739425494,0.03539199,2673.5,2673.3,3.74069]
[1739739426218,0.03539199,2673.5,2673.3,4.114759]
[1739739426430,0.03539199,2673.5,2673.4,3.74055]
[1739739427397,0.03539199,2673.5,2673.2,3.74082]
[1739739427600,0.03539199,2673.5,2673.3,3.7406]
[1739739427793,0.03539199,2673.5,2673.3,3.74068]
[1739739428415,5.36943909,2673.5,2673.3,3.74068]
[1739739428610,5.36943909,2673.5,2673.0,3.23881305]
[1739739428816,0.7782,2673.3,2673.0,3.74111]
[1739739429437,0.03536262,2673.2,2673.0,3.74111]
[1739739429799,0.7782,2673.3,2673.0,3.74111]
[1739739429994,0.03524261,2673.1,2673.0,3.74111]
[1739739430255,0.7782,2673.3,2673.0,3.74111]
[1739739430399,0.03524261,2673.1,2673.0,3.74111]
[1739739430798,0.7782,2673.3,2673.0,3.74111]
[1739739430994,0.03524261,2673.1,2673.0,3.74111]
[1739739431233,0.7782,2673.3,2673.0,3.74111]
[1739739431440,0.03524261,2673.1,2673.0,3.74111]
[1739739431651,0.7782,2673.3,2673.0,3.74111]
[1739739431834,0.03524261,2673.1,2673.0,3.74111]
[1739739432036,0.7782,2673.3,2673.0,3.74111]
[1739739432336,0.7782,2673.3,2673.0,3.74105]
[1739739432539,0.7782,2673.3,2673.2,3.74083]
[1739739432763,5.3340471,2673.5,2673.3,3.74063]
[1739739433758,5.3340471,2673.5,2673.2,3.74082]
[1739739434263,10.11150247,2673.5,2673.0,3.74098]
[1739739434419,6.32430381,2673.5,2673.1,3.7409]
[1739739434619,6.37106247,2673.5,2673.1,3.7409]
[1739739435447,5.38080576,2673.5,2673.1,3.7409]
[1739739435647,5.3340471,2673.5,2673.2,3.74083]
[1739739435854,9.12122575,2673.5,2672.8,3.0]
[1739739436025,9.0744671,2673.5,2673.0,3.74101]
[1739739436220,0.04676018,2673.4,2673.0,3.74101]
[1739739436421,9.0744671,2673.5,2673.0,3.74101]
[1739739436633,10.06474381,2673.5,2673.0,3.74101]
[1739739436835,3.74062,2673.4,2672.9,3.74124]
[1739739437034,13.80526381,2673.5,2673.0,3.74108]
[1739739437436,10.06474381,2673.5,2673.0,3.74108]
[1739739437636,13.80523381,2673.5,2673.0,3.74108]
[1739739438183,10.06474381,2673.5,2673.0,3.74108]
[1739739438551,10.06474381,2673.5,2673.1,3.74091]
[1739739439651,3.74062,2673.4,2672.9,3.74116]
[1739739440052,10.06474381,2673.5,2673.0,3.74111]
[1739739440987,10.06474381,2673.5,2673.0,3.74111]
[1739739441388,6.32432381,2673.5,2673.1,3.74095]
[1739739441555,6.32432381,2673.5,2673.1,3.74091]
[1739739441905,5.3340471,2673.5,2673.1,3.74091]
[1739739442587,9.0744871,2673.5,2673.1,3.74091]
[1739739443088,5.3340471,2673.5,2673.1,3.7409]
[1739739443385,5.3340471,2673.5,2673.2,3.74074]
[1739739444086,5.3340471,2673.5,2672.9,3.74114]
[1739739444394,10.06471881,2673.5,2673.0,3.74104]
[1739739444794,0.7669,2673.4,2673.0,3.74104]
[1739739444958,4.55431183,2673.4,2672.9,3.74114]
[1739739445292,4.55431183,2673.4,2672.9,7.4823]
[1739739445789,4.55431183,2673.4,2673.0,3.74109]
[1739739446091,5.3340471,2673.3,2673.0,3.74109]
[1739739449199,5.3340471,2673.3,2673.0,7.48212]
[1739739449569,5.3340471,2673.3,2673.1,3.74093]
[1739739449770,5.3340471,2673.3,2673.2,3.74083]
[1739739450204,5.3340471,2673.3,2673.1,3.74096]
[1739739452501,5.3340471,2673.3,2673.1,7.48186]
[1739739452820,5.3340471,2673.3,2673.1,3.7409]
[1739739455113,5.3340471,2673.3,2673.2,3.74083]
[1739739455283,5.3340471,2673.3,2673.1,3.7409]
[1739739456332,5.3340471,2673.3,2673.2,3.74083]
[1739739459134,5.3340471,2673.3,2673.2,4.489003]
[1739739463259,5.3340471,2673.3,2673.2,3.74083]
[1739739465861,5.3340471,2673.3,2673.1,3.7409]
[1739739466068,5.3340471,2673.3,2673.2,3.74083]
[1739739467566,5.3340471,2673.3,2673.1,3.7409]
[1739739468274,5.3340471,2673.3,2673.1,7.48179]
[1739739468563,5.3340471,2673.3,2673.1,7.4818]
[1739739468768,5.3340471,2673.3,2673.1,3.74089]
[1739739469477,5.3340471,2673.3,2673.0,3.7411]
[1739739469684,0.8194,2673.1,2672.2,3.79983]
[1739739469878,4.56096,2672.7,2672.1,3.74233]
[1739739470038,0.04677609,2672.6,2672.1,3.74233]
[1739739470235,3.78845609,2672.6,2672.1,3.74233]
[1739739470681,3.74189,2672.5,2671.9,3.74256]
[1739739470888,6.1534471,2672.4,2671.9,3.74256]
[1739739471953,6.1534471,2672.4,2672.0,3.74243]
[1739739472181,6.1534471,2672.4,2671.9,3.74256]
[1739739472640,6.1534471,2672.4,2672.0,3.74251]
[1739739472836,6.1534471,2672.4,2671.8,3.29641305]
[1739739473042,9.8954771,2672.4,2671.8,6.98152305]
[1739739473278,0.8194,2672.2,2671.6,3.80056]
[1739739473481,6.1534471,2672.2,2671.7,3.74281]
[1739739474265,0.04678292,2672.1,2671.5,3.23881305]
[1739739474564,4.56194,2672.0,2671.5,3.23881305]
[1739739475297,4.56194,2672.0,2671.5,6.98202305]
[1739739475897,4.56194,2672.0,2671.5,3.23881305]
[1739739476097,0.8041,2671.7,2671.2,6.98236305]
[1739739476300,0.8041,2671.7,2670.8,3.8397188]
[1739739476301,0.8041,2671.5,2670.8,3.8972588]
[1739739476601,5.3340471,2671.7,2670.8,0.0955588]
[1739739476602,3.74401,2671.0,2670.8,0.0955588]
[1739739476769,4.922551,2670.9,2670.8,0.0955588]
[1739739477506,1.178501,2670.9,2670.8,0.0955588]
[1739739477801,0.8041,2670.9,2670.8,0.0955588]
[1739739478358,4.54815,2670.9,2670.8,0.0955588]
[1739739479687,0.8041,2670.9,2670.8,0.0955588]
[1739739480087,5.3340471,2671.0,2670.8,0.0955588]
[1739739480318,5.3340471,2671.0,2670.9,7.04046305]
[1739739480604,5.3340471,2671.0,2670.9,8.42848424]
[1739739480797,0.8041,2671.6,2670.9,4.68443424]
[1739739480958,5.3340471,2671.7,2671.3,3.74339]
[1739739482064,5.3340471,2671.7,2671.6,3.74307]
[1739739482776,5.3340471,2671.7,2671.5,3.7432]
[1739739482973,5.3340471,2671.7,2671.3,3.74341]
[1739739483878,5.3340471,2671.7,2671.4,3.74335]
[1739739484193,5.3340471,2671.7,2671.3,3.74341]
[1739739484507,0.8041,2671.6,2671.3,3.74341]
[1739739484707,0.8041,2671.6,2671.4,3.74335]
[1739739485410,0.8041,2671.6,2671.3,7.48681]
[1739739485613,0.8041,2671.6,2671.4,3.74334]
[1739739485817,5.3340471,2671.7,2671.4,3.74334]
[1739739487488,5.3340471,2671.7,2671.5,3.74314]
[1739739487827,5.3340471,2671.7,2671.4,3.0]
[1739739488033,4.59399973,2671.6,2671.4,3.0]
[1739739488179,4.59399973,2671.6,2671.1,3.74367]
[1739739488680,0.8041,2671.4,2670.8,6.8396688]
[1739739488918,3.7435,2671.3,2670.8,0.0955588]
[1739739489077,3.7435,2671.3,2670.8,3.0955588]
[1739739489620,6.1381471,2671.4,2670.8,3.0955588]
[1739739489787,6.1381471,2671.4,2670.9,3.74398]
[1739739489983,9.8815271,2671.4,2670.9,3.74398]
[1739739490296,6.1381471,2671.4,2671.0,3.74389]
[1739739490815,9.8815771,2671.4,2670.8,6.8396488]
[1739739491010,0.04680018,2671.3,2670.8,3.0955588]
[1739739491328,3.74357,2671.3,2670.8,6.8397188]
[1739739492011,3.79051018,2671.2,2670.8,3.0955588]
[1739739492327,0.7695,2671.1,2670.8,3.0955588]
[1739739492481,4.51341,2671.1,2670.8,0.0955588]
[1739739492686,3.744,2671.0,2670.8,0.0955588]
[1739739492985,4.56035718,2670.9,2670.8,0.0955588]
[1739739494028,4.51355,2670.9,2670.8,0.0955588]
[1739739494235,0.7695,2670.9,2670.8,0.0955588]
[1739739494730,4.51355,2670.9,2670.8,0.0955588]
[1739739494936,5.95573964,2670.9,2670.8,0.0955588]
[1739739495824,2.21168964,2670.9,2670.8,0.0955588]
[1739739496127,5.95573964,2670.9,2670.8,0.0955588]
[1739739496723,11.28978674,2670.9,2670.8,0.0955588]
[1739739497290,7.54573674,2670.9,2670.8,0.0955588]
[1739739497621,6.1035471,2670.9,2670.8,0.0955588]
[1739739500302,5.3340471,2670.9,2670.8,0.0955588]
[1739739500803,5.3340471,2670.9,2670.8,3.8397488]
[1739739501503,5.3340471,2670.9,2670.8,3.8973488]
[1739739502601,5.3340471,2671.2,2670.8,0.1531588]
[1739739502903,5.3340471,2671.2,2670.9,3.74404]
[1739739503718,5.3340471,2671.2,2671.0,3.74389]
[1739739504100,5.3340471,2671.2,2670.9,3.74395]
[1739739504443,5.3340471,2671.2,2671.0,3.7439]
[1739739505239,5.3340471,2671.2,2671.0,3.74383]
[1739739505536,0.7695,2671.5,2671.1,3.74377]
[1739739505729,0.7695,2671.5,2671.2,3.74353]
[1739739506560,0.7695,2671.5,2671.3,3.74337]
[1739739506703,5.3340471,2671.6,2671.3,3.74337]
[1739739506908,5.3340471,2671.6,2671.5,3.74321]
[1739739509836,5.3340471,2672.0,2671.8,3.74271]
[1739739510753,5.3340471,2672.0,2671.4,3.74325]
[1739739511046,0.7811,2671.9,2671.4,3.74325]
[1739739511254,4.52414,2671.7,2671.2,3.74362]
[1739739511401,9.8581871,2671.7,2671.2,3.74362]
[1739739511608,0.98581871,2671.6,2671.2,3.74362]
[1739739514256,0.98581871,2671.6,2671.0,0.0576]
[1739739514466,5.3340471,2671.6,2671.2,3.74357]
[1739739516049,5.3340471,2671.6,2671.2,3.74356]
[1739739516610,5.3340471,2671.6,2671.0,0.0576]
[1739739516812,5.3340471,2671.6,2671.5,3.74321]
[1739739517136,0.7811,2672.1,2671.7,3.74283]
[1739739517851,0.0467852,2672.0,2671.7,3.74283]
[1739739519115,0.7811,2672.1,2671.7,3.74283]
[1739739520357,6.1151471,2672.1,2671.7,3.74283]
[1739739521537,6.1151471,2672.1,2671.8,3.74276]
[1739739526642,0.04678499,2672.0,2671.7,3.74292]
[1739739527260,9.8575271,2672.1,2671.8,3.74278]
[1739739527261,6.1151471,2672.1,2671.8,3.74278]
[1739739528064,0.04678498,2672.0,2671.7,3.74292]
[1739739528364,0.04678498,2672.0,2671.8,3.74279]
[1739739528523,0.04678497,2672.0,2671.8,3.74279]
[1739739529223,6.1151471,2672.1,2671.8,3.74279]
[1739739529842,0.04678496,2672.0,2671.7,3.74292]
[1739739530034,6.1151471,2672.1,2671.7,7.48576]
[1739739530327,6.4894471,2672.1,2671.8,3.74277]
[1739739530541,6.1151471,2672.1,2671.8,3.74277]
[1739739534777,6.1151471,2672.1,2671.8,3.74271]
[1739739536004,11.21748981,2672.1,2671.6,3.74297]
[1739739536195,0.04678493,2672.0,2671.6,7.48596]
[1739739536506,0.04678493,2672.0,2671.7,3.74292]
[1739739537213,3.74274,2671.9,2671.4,4.491899]
[1739739537371,0.04679075,2671.8,2671.4,3.74333]
[1739739537567,3.743,2671.7,2671.2,3.74362]
[1739739537786,4.59649215,2671.7,2671.2,3.74362]
[1739739538098,4.59649215,2671.7,2671.2,7.48717]
[1739739538274,0.85349215,2671.7,2671.2,3.74355]
[1739739538475,0.8067,2671.7,2671.3,3.74339]
[1739739539221,0.8067,2671.7,2671.2,3.74355]
[1739739539512,6.1407471,2671.8,2671.5,3.74311]
[1739739539709,3.78976212,2671.7,2671.3,3.74341]
[1739739540290,3.7433,2671.5,2671.0,3.7439]
[1739739540520,0.8067,2671.6,2671.1,3.74377]
[1739739540840,0.8067,2671.6,2671.3,3.7434]
[1739739541040,5.3340471,2671.8,2671.6,3.74295]
[1739739541546,5.3340471,2671.8,2671.6,3.743]
[1739739541747,5.3340471,2671.8,2671.6,3.74298]
[1739739541905,5.3340471,2671.8,2671.4,3.74327]
[1739739542102,5.3340471,2671.8,2671.4,3.74325]
[1739739542913,5.3340471,2671.8,2671.5,3.7432]
[1739739543928,5.3340471,2671.8,2671.5,3.74319]
[1739739544663,0.80798739,2671.7,2671.4,3.74325]
[1739739544864,0.80798739,2671.7,2671.2,7.48711]
[1739739545566,4.55092739,2671.7,2671.2,3.74355]
[1739739545724,0.80798739,2671.7,2671.2,3.74355]
[1739739545926,0.67319601,2671.6,2671.0,3.74384]
[1739739546126,4.50444,2671.5,2671.0,3.74384]
[1739739546322,0.7612,2671.5,2671.0,3.74384]
[1739739546526,0.7612,2671.5,2671.1,3.74367]
[1739739547235,0.7612,2671.7,2671.4,3.74332]
[1739739547462,0.7612,2671.7,2671.2,3.74355]
[1739739547668,0.7612,2671.7,2671.3,3.74344]
[1739739548293,0.7612,2671.7,2671.4,3.74333]
[1739739548695,0.7612,2671.7,2671.4,3.74326]
[1739739549202,0.7612,2672.0,2671.5,3.74308]
[1739739549401,0.7612,2672.0,2671.7,3.74285]
[1739739549765,0.7612,2672.0,2671.6,3.8006]
[1739739550102,0.7612,2672.0,2671.6,7.54357]
[1739739550403,0.3743,2671.9,2671.6,7.54357]
[1739739550561,0.7612,2672.0,2671.6,7.54357]
[1739739550762,0.7612,2672.0,2671.6,3.74297]
[1739739550962,1.2162426,2672.0,2671.6,3.74297]
[1739739551162,0.04678603,2671.9,2671.6,3.74297]
[1739739551364,0.7612,2672.0,2671.6,3.74297]
[1739739551563,0.7612,2672.0,2671.7,3.74293]
[1739739552273,0.7612,2672.0,2671.9,3.74265]
[1739739552586,0.7886,2672.3,2671.9,3.74265]
[1739739552760,0.7886,2672.3,2672.0,3.74251]
[1739739552963,0.7886,2672.3,2671.9,3.74265]
[1739739553589,1.615851,2672.3,2671.9,3.74265]
[1739739554293,0.7886,2672.3,2672.0,3.74246]
[1739739555794,0.7886,2672.3,2671.8,3.74279]
[1739739556113,0.7886,2672.3,2671.9,3.74264]
[1739739556114,0.04678055,2672.2,2671.9,3.74264]
[1739739557194,3.78903055,2672.2,2671.7,3.80044]
[1739739557526,3.78903055,2672.2,2671.6,3.74305]
[1739739557527,0.7886,2672.1,2671.6,3.74305]
[1739739557726,6.1226471,2672.1,2671.7,3.74286]
[1739739558728,6.1226471,2672.1,2671.6,3.74305]
[1739739558939,6.1226471,2672.1,2671.5,3.74318]
[1739739558940,0.04678527,2672.0,2671.5,3.74318]
[1739739559431,3.78935527,2672.0,2671.5,3.74318]
[1739739559604,0.04678527,2672.0,2671.5,3.74318]
[1739739559801,0.04678527,2672.0,2671.4,3.80091]
[1739739560006,0.04678527,2672.0,2671.6,3.74306]
[1739739562913,0.04678527,2672.0,2671.6,7.48612]
[1739739563230,4.531,2672.1,2671.6,3.74306]
[1739739564235,0.04678593,2672.0,2671.6,3.74299]
[1739739566022,4.53098,2672.1,2671.7,3.74289]
[1739739566543,4.53098,2672.1,2671.6,3.743]
[1739739566863,4.53098,2672.1,2671.6,7.48599]
[1739739567348,4.53098,2672.1,2671.4,0.0576]
[1739739567556,3.78935591,2672.0,2671.5,3.74313]
[1739739567903,9.12340301,2672.0,2671.5,3.74313]
[1739739568126,9.0766171,2672.0,2671.4,3.80085]
[1739739568303,9.0766171,2672.0,2671.5,3.74321]
[1739739568719,9.0766171,2672.0,2671.6,3.74305]
[1739739569247,0.04678594,2671.9,2671.6,3.74305]
[1739739570447,0.04678593,2671.9,2671.6,3.74305]
[1739739570946,5.3340471,2672.0,2671.7,3.74292]
[1739739571243,9.12341299,2672.0,2671.6,3.74298]
[1739739571421,9.0766271,2672.0,2671.6,3.74298]
[1739739571622,0.04678593,2671.9,2671.6,3.74298]
[1739739572337,5.3340471,2672.0,2671.6,3.74298]
[1739739572539,5.3340471,2672.0,2671.7,3.74291]
[1739739574479,0.04678587,2671.9,2671.5,3.74316]
[1739739574622,9.0766571,2672.0,2671.5,3.74316]
[1739739574956,0.3743,2671.9,2671.5,3.74316]
[1739739575124,10.43742681,2672.0,2671.5,3.74316]